[Event "*** Titled Tuesday Blitz"]
[Site "Chess.com"]
[Date "2020.05.05"]
[Round "2"]
[White "mishanick"]
[Black "vpsetter"]
[Result "0-1"]
[WhiteElo "2938"]
[BlackElo "2592"]
[TimeControl "180+1"]
[EndTime "10:21:59 PDT"]
[Termination "vpsetter won on time"]

1. d4 {[%clk 0:03:00.9]} 1... Nf6 {[%clk 0:02:59.4]} 2. c4 {[%clk 0:03:00.4]}
2... e6 {[%clk 0:02:59.9]} 3. Nf3 {[%clk 0:02:59.3]} 3... d5 {[%clk 0:02:58.5]}
4. Nc3 {[%clk 0:02:58.8]} 4... Be7 {[%clk 0:02:57.2]} 5. g3 {[%clk 0:02:57.6]}
5... c6 {[%clk 0:02:27.8]} 6. Bg2 {[%clk 0:02:56.1]} 6... b6 {[%clk 0:02:27.9]}
7. O-O {[%clk 0:02:54.7]} 7... Ba6 {[%clk 0:02:25.1]} 8. cxd5 {[%clk 0:02:51.1]}
8... cxd5 {[%clk 0:02:23.8]} 9. Re1 {[%clk 0:02:44]} 9... Bb7 {[%clk 0:02:21.5]}
10. Bf4 {[%clk 0:02:41.9]} 10... O-O {[%clk 0:02:20.3]} 11. Rc1 {[%clk
0:02:41.6]} 11... Nc6 {[%clk 0:02:20.2]} 12. a3 {[%clk 0:02:40]} 12... Rc8
{[%clk 0:02:19.7]} 13. Ne5 {[%clk 0:02:39.9]} 13... a6 {[%clk 0:02:02.6]} 14. b4
{[%clk 0:02:31.2]} 14... Nxe5 {[%clk 0:01:55.9]} 15. Bxe5 {[%clk 0:02:32.1]}
15... Nd7 {[%clk 0:01:54]} 16. Qd2 {[%clk 0:02:30.9]} 16... b5 {[%clk 0:01:52]}
17. Bf4 {[%clk 0:02:18.7]} 17... Nb6 {[%clk 0:01:50.6]} 18. h4 {[%clk
0:02:16.3]} 18... Nc4 {[%clk 0:01:50.6]} 19. Qa2 {[%clk 0:02:16.4]} 19... Qb6
{[%clk 0:01:45.8]} 20. Red1 {[%clk 0:02:13.8]} 20... a5 {[%clk 0:01:30.2]} 21.
Qb3 {[%clk 0:01:49.1]} 21... Nxa3 {[%clk 0:01:10.9]} 22. bxa5 {[%clk 0:01:04.3]}
22... Qxa5 {[%clk 0:01:09.9]} 23. e3 {[%clk 0:01:02]} 23... b4 {[%clk
0:01:09.4]} 24. Na4 {[%clk 0:00:59.2]} 24... Ba6 {[%clk 0:01:05.7]} 25. Nb2
{[%clk 0:00:52.1]} 25... Bc4 {[%clk 0:00:59.6]} 26. Nxc4 {[%clk 0:00:46.5]}
26... dxc4 {[%clk 0:00:59.9]} 27. Qb2 {[%clk 0:00:46.7]} 27... b3 {[%clk
0:00:50.3]} 28. Bf1 {[%clk 0:00:39.7]} 28... Qb4 {[%clk 0:00:48.1]} 29. Rc3
{[%clk 0:00:28.8]} 29... Nb5 {[%clk 0:00:47.5]} 30. Rxc4 {[%clk 0:00:23.6]}
30... Rxc4 {[%clk 0:00:46.5]} 31. Bxc4 {[%clk 0:00:24.5]} 31... Qxc4 {[%clk
0:00:46.8]} 32. Rb1 {[%clk 0:00:25]} 32... Nc3 {[%clk 0:00:35.4]} 33. Qxb3
{[%clk 0:00:25.3]} 33... Qd3 {[%clk 0:00:21.2]} 34. Rb2 {[%clk 0:00:22.9]} 34...
Ne2+ {[%clk 0:00:19.3]} 35. Kg2 {[%clk 0:00:23.1]} 35... Nxf4+ {[%clk
0:00:18.6]} 36. gxf4 {[%clk 0:00:22]} 36... Qxb3 {[%clk 0:00:17.2]} 37. Rxb3
{[%clk 0:00:22.9]} 37... Bxh4 {[%clk 0:00:17.9]} 38. Rb5 {[%clk 0:00:21.4]}
38... Bf6 {[%clk 0:00:18]} 39. f5 {[%clk 0:00:21.5]} 39... Rd8 {[%clk
0:00:17.2]} 40. fxe6 {[%clk 0:00:21.2]} 40... fxe6 {[%clk 0:00:17.9]} 41. f4
{[%clk 0:00:21.9]} 41... Rd7 {[%clk 0:00:17.2]} 42. Kf3 {[%clk 0:00:22.4]} 42...
Kf7 {[%clk 0:00:17.8]} 43. Ke4 {[%clk 0:00:22.7]} 43... g6 {[%clk 0:00:18.2]}
44. Ra5 {[%clk 0:00:22.9]} 44... h5 {[%clk 0:00:18.6]} 45. Kf3 {[%clk
0:00:22.6]} 45... Kg7 {[%clk 0:00:16.6]} 46. Ra6 {[%clk 0:00:20.9]} 46... Kf7
{[%clk 0:00:16]} 47. Ke4 {[%clk 0:00:20.9]} 47... g5 {[%clk 0:00:12.7]} 48. fxg5
{[%clk 0:00:20.2]} 48... Bxg5 {[%clk 0:00:13.3]} 49. Ra5 {[%clk 0:00:21]} 49...
Kf6 {[%clk 0:00:13.7]} 50. Kf3 {[%clk 0:00:20.9]} 50... Rc7 {[%clk 0:00:13.5]}
51. e4 {[%clk 0:00:20]} 51... Rc3+ {[%clk 0:00:13.3]} 52. Kg2 {[%clk 0:00:20.6]}
52... Re3 {[%clk 0:00:09]} 53. d5 {[%clk 0:00:20.1]} 53... Rxe4 {[%clk
0:00:06.9]} 54. dxe6 {[%clk 0:00:19.8]} 54... Rxe6 {[%clk 0:00:07.1]} 55. Ra2
{[%clk 0:00:18.1]} 55... Kg6 {[%clk 0:00:07.4]} 56. Rf2 {[%clk 0:00:17.2]} 56...
Rc6 {[%clk 0:00:06.7]} 57. Rf8 {[%clk 0:00:17.2]} 57... Rc3 {[%clk 0:00:06.6]}
58. Rf3 {[%clk 0:00:17.5]} 58... Rc4 {[%clk 0:00:06.9]} 59. Rf2 {[%clk
0:00:17.8]} 59... Bf4 {[%clk 0:00:07.2]} 60. Re2 {[%clk 0:00:17.6]} 60... Kg5
{[%clk 0:00:07.7]} 61. Kh3 {[%clk 0:00:17.8]} 61... Rc3+ {[%clk 0:00:07.9]} 62.
Kg2 {[%clk 0:00:18.4]} 62... Kg4 {[%clk 0:00:08.4]} 63. Rf2 {[%clk 0:00:18.4]}
63... h4 {[%clk 0:00:08.8]} 64. Rf1 {[%clk 0:00:17.9]} 64... h3+ {[%clk
0:00:09]} 65. Kh1 {[%clk 0:00:18.4]} 65... Rc2 {[%clk 0:00:08.9]} 66. Rg1+
{[%clk 0:00:19]} 66... Bg3 {[%clk 0:00:09.5]} 67. Rb1 {[%clk 0:00:09.4]} 67...
Bf4 {[%clk 0:00:09.4]} 68. Rg1+ {[%clk 0:00:08.8]} 68... Kh4 {[%clk 0:00:09.3]}
69. Rf1 {[%clk 0:00:09]} 69... Be3 {[%clk 0:00:05.3]} 70. Re1 {[%clk 0:00:08.8]}
70... Bf4 {[%clk 0:00:05.4]} 71. Rf1 {[%clk 0:00:09.1]} 71... Rc4 {[%clk
0:00:05.6]} 72. Rd1 {[%clk 0:00:08.6]} 72... Kg4 {[%clk 0:00:05.2]} 73. Rg1+
{[%clk 0:00:08.6]} 73... Kf5 {[%clk 0:00:05.9]} 74. Rf1 {[%clk 0:00:08.5]} 74...
Rc2 {[%clk 0:00:05.3]} 75. Rd1 {[%clk 0:00:08]} 75... Ke4 {[%clk 0:00:05.4]} 76.
Re1+ {[%clk 0:00:07.8]} 76... Be3 {[%clk 0:00:05.9]} 77. Rf1 {[%clk 0:00:06.4]}
77... Rb2 {[%clk 0:00:03.5]} 78. Re1 {[%clk 0:00:06.4]} 78... Kf3 {[%clk
0:00:03.6]} 79. Rf1+ {[%clk 0:00:06.6]} 79... Kg4 {[%clk 0:00:03.4]} 80. Re1
{[%clk 0:00:04.6]} 80... Bf4 {[%clk 0:00:02.8]} 81. Rg1+ {[%clk 0:00:03.6]}
81... Kh4 {[%clk 0:00:03.3]} 82. Rf1 {[%clk 0:00:04.1]} 82... Kg5 {[%clk
0:00:03.7]} 83. Rg1+ {[%clk 0:00:04.5]} 83... Kf5 {[%clk 0:00:04.4]} 84. Rf1
{[%clk 0:00:05.4]} 84... Rc2 {[%clk 0:00:04.8]} 85. Re1 {[%clk 0:00:05.8]} 85...
Bg3 {[%clk 0:00:04.2]} 86. Rf1+ {[%clk 0:00:06.3]} 86... Kg4 {[%clk 0:00:04.1]}
87. Rd1 {[%clk 0:00:06.3]} 87... Rh2+ {[%clk 0:00:04.2]} 88. Kg1 {[%clk
0:00:06.1]} 88... Re2 {[%clk 0:00:04.8]} 89. Kh1 {[%clk 0:00:06.2]} 89... Kf3
{[%clk 0:00:05.4]} 90. Rf1+ {[%clk 0:00:06.3]} 90... Bf2 {[%clk 0:00:04.7]} 91.
Rd1 {[%clk 0:00:06.3]} 91... Re3 {[%clk 0:00:04.6]} 92. Rb1 {[%clk 0:00:06]}
92... Bg3 {[%clk 0:00:04.1]} 0-1

[Event "*** Titled Tuesday Blitz"]
[Site "Chess.com"]
[Date "2020.05.05"]
[Round "3"]
[White "SamuelGhimpu2003"]
[Black "KingChess345"]
[Result "1-0"]
[WhiteElo "2685"]
[BlackElo "2184"]
[TimeControl "180+1"]
[EndTime "10:24:11 PDT"]
[Termination "SamuelGhimpu2003 won by resignation"]

1. e4 {[%clk 0:03:00.9]} 1... c5 {[%clk 0:03:00.5]} 2. Nf3 {[%clk 0:03:00]} 2...
Nc6 {[%clk 0:03:01]} 3. d4 {[%clk 0:02:58.7]} 3... cxd4 {[%clk 0:03:01.9]} 4.
Nxd4 {[%clk 0:02:59.6]} 4... Nf6 {[%clk 0:03:02.5]} 5. Nc3 {[%clk 0:02:59.4]}
5... e5 {[%clk 0:03:02.8]} 6. Ndb5 {[%clk 0:02:59.7]} 6... d6 {[%clk 0:03:03.2]}
7. Nd5 {[%clk 0:02:59.6]} 7... Nxd5 {[%clk 0:03:02.5]} 8. exd5 {[%clk
0:03:00.5]} 8... Ne7 {[%clk 0:03:02.9]} 9. c4 {[%clk 0:03:00.6]} 9... Ng6 {[%clk
0:03:01.2]} 10. Qa4 {[%clk 0:03:00.3]} 10... Bd7 {[%clk 0:02:58.7]} 11. Qb4
{[%clk 0:03:00.6]} 11... Qb8 {[%clk 0:02:58.4]} 12. h4 {[%clk 0:03:00.1]} 12...
h5 {[%clk 0:02:51.2]} 13. g3 {[%clk 0:02:58.7]} 13... Be7 {[%clk 0:02:49.8]} 14.
Be3 {[%clk 0:02:57.1]} 14... O-O {[%clk 0:02:36.2]} 15. Be2 {[%clk 0:02:56]}
15... Bg4 {[%clk 0:02:28.9]} 16. Bxg4 {[%clk 0:02:44.9]} 16... hxg4 {[%clk
0:02:29.8]} 17. h5 {[%clk 0:02:45.8]} 17... Nh8 {[%clk 0:02:29.8]} 18. h6 {[%clk
0:02:45.8]} 18... g6 {[%clk 0:02:28.1]} 19. h7+ {[%clk 0:02:45.3]} 19... Kg7
{[%clk 0:02:25.6]} 20. Bh6+ {[%clk 0:02:44.9]} 20... Kxh7 {[%clk 0:02:25.9]} 21.
Bxf8+ {[%clk 0:02:44.8]} 21... Kg8 {[%clk 0:02:22.1]} 22. Bxe7 {[%clk
0:02:44.8]} 1-0

[Event "*** Titled Tuesday Blitz"]
[Site "Chess.com"]
[Date "2020.05.05"]
[Round "3"]
[White "lolo9292"]
[Black "Rud_Makarian"]
[Result "0-1"]
[WhiteElo "2504"]
[BlackElo "2736"]
[TimeControl "180+1"]
[EndTime "10:25:16 PDT"]
[Termination "Rud_Makarian won by resignation"]

1. d4 {[%clk 0:03:00.9]} 1... Nf6 {[%clk 0:02:57.5]} 2. c4 {[%clk 0:03:01.3]}
2... g6 {[%clk 0:02:56.5]} 3. Nc3 {[%clk 0:03:01.7]} 3... Bg7 {[%clk 0:02:56.7]}
4. e4 {[%clk 0:03:01.7]} 4... d6 {[%clk 0:02:57.2]} 5. f3 {[%clk 0:03:02.1]}
5... O-O {[%clk 0:02:57.4]} 6. Nge2 {[%clk 0:03:00.1]} 6... a6 {[%clk
0:02:56.6]} 7. Be3 {[%clk 0:02:58.1]} 7... b5 {[%clk 0:02:54.9]} 8. cxb5 {[%clk
0:02:59]} 8... axb5 {[%clk 0:02:55.8]} 9. Nxb5 {[%clk 0:02:59.5]} 9... c6 {[%clk
0:02:56.7]} 10. Nbc3 {[%clk 0:02:59.9]} 10... Nbd7 {[%clk 0:02:57.3]} 11. g4
{[%clk 0:02:59.6]} 11... e5 {[%clk 0:02:57.1]} 12. h4 {[%clk 0:02:59.6]} 12...
Re8 {[%clk 0:02:47.7]} 13. h5 {[%clk 0:02:55.7]} 13... d5 {[%clk 0:02:46.2]} 14.
g5 {[%clk 0:02:53.2]} 14... Nxh5 {[%clk 0:02:45.3]} 15. Rxh5 {[%clk 0:02:52.4]}
15... gxh5 {[%clk 0:02:46.2]} 16. exd5 {[%clk 0:02:51.5]} 16... cxd5 {[%clk
0:02:37.9]} 17. Bg2 {[%clk 0:02:44.9]} 17... exd4 {[%clk 0:02:32.3]} 18. Bxd4
{[%clk 0:02:45.8]} 18... Qxg5 {[%clk 0:02:32.4]} 19. Kf1 {[%clk 0:02:41]} 19...
Ba6 {[%clk 0:02:31.1]} 20. Bxg7 {[%clk 0:02:39.6]} 20... Rxe2 {[%clk 0:02:19.9]}
21. Nxe2 {[%clk 0:02:40.5]} 21... Re8 {[%clk 0:02:19.6]} 22. Bh3 {[%clk
0:02:18.2]} 22... Bxe2+ {[%clk 0:02:12.8]} 23. Qxe2 {[%clk 0:02:18.1]} 23...
Rxe2 {[%clk 0:02:13.7]} 24. Kxe2 {[%clk 0:02:18.8]} 24... Qxg7 {[%clk
0:02:12.3]} 25. Rd1 {[%clk 0:02:17.9]} 25... Qxb2+ {[%clk 0:02:11.3]} 26. Rd2
{[%clk 0:02:18.1]} 26... Qb5+ {[%clk 0:02:11]} 27. Kf2 {[%clk 0:02:18.4]} 27...
Ne5 {[%clk 0:02:10.4]} 28. Bf5 {[%clk 0:02:17.3]} 28... d4 {[%clk 0:02:08.8]}
29. Rxd4 {[%clk 0:02:12.2]} 29... Qc5 {[%clk 0:02:07]} 30. Ke3 {[%clk
0:02:12.6]} 30... Nc6 {[%clk 0:02:07.4]} 0-1

[Event "*** Titled Tuesday Blitz"]
[Site "Chess.com"]
[Date "2020.05.05"]
[Round "3"]
[White "GMNeiksans"]
[Black "pichonazo"]
[Result "1-0"]
[WhiteElo "2779"]
[BlackElo "2515"]
[TimeControl "180+1"]
[EndTime "10:25:19 PDT"]
[Termination "GMNeiksans won by resignation"]

1. e4 {[%clk 0:03:00.9]} 1... c5 {[%clk 0:02:58.6]} 2. Nf3 {[%clk 0:03:00.5]}
2... d6 {[%clk 0:02:58.5]} 3. Bb5+ {[%clk 0:02:59.8]} 3... Bd7 {[%clk
0:02:56.6]} 4. Bxd7+ {[%clk 0:02:58.7]} 4... Nxd7 {[%clk 0:02:56.5]} 5. O-O
{[%clk 0:02:56.9]} 5... Ngf6 {[%clk 0:02:56.8]} 6. Qe2 {[%clk 0:02:55.4]} 6...
g6 {[%clk 0:02:54.4]} 7. c3 {[%clk 0:02:33.8]} 7... Bg7 {[%clk 0:02:49.9]} 8. d4
{[%clk 0:02:34]} 8... O-O {[%clk 0:02:45.8]} 9. e5 {[%clk 0:02:30]} 9... dxe5
{[%clk 0:02:45.5]} 10. dxe5 {[%clk 0:02:30.1]} 10... Nd5 {[%clk 0:02:38.4]} 11.
e6 {[%clk 0:02:29.3]} 11... N7f6 {[%clk 0:02:30.8]} 12. exf7+ {[%clk 0:02:19.1]}
12... Kh8 {[%clk 0:02:24.8]} 13. Ng5 {[%clk 0:02:17.4]} 13... Qd6 {[%clk
0:02:20.8]} 14. Na3 {[%clk 0:01:59.5]} 14... Nf4 {[%clk 0:01:58.1]} 15. Bxf4
{[%clk 0:01:57.7]} 15... Qxf4 {[%clk 0:01:56.8]} 16. Ne6 {[%clk 0:01:56.6]}
16... Qe4 {[%clk 0:01:54.1]} 17. Qxe4 {[%clk 0:01:54.9]} 17... Nxe4 {[%clk
0:01:55]} 18. Nxf8 {[%clk 0:01:54.9]} 18... Rxf8 {[%clk 0:01:54.8]} 19. Rfe1
{[%clk 0:01:52.7]} 1-0

[Event "*** Titled Tuesday Blitz"]
[Site "Chess.com"]
[Date "2020.05.05"]
[Round "3"]
[White "szefru"]
[Black "m_ezat"]
[Result "0-1"]
[WhiteElo "2102"]
[BlackElo "2472"]
[TimeControl "180+1"]
[EndTime "10:25:31 PDT"]
[Termination "m_ezat won by resignation"]

1. e4 {[%clk 0:03:00.9]} 1... c6 {[%clk 0:02:59]} 2. d4 {[%clk 0:02:58.5]} 2...
d5 {[%clk 0:02:52.2]} 3. Nc3 {[%clk 0:02:55.9]} 3... dxe4 {[%clk 0:02:51.3]} 4.
Nxe4 {[%clk 0:02:56.8]} 4... Nd7 {[%clk 0:02:51.5]} 5. Qe2 {[%clk 0:02:27.5]}
5... Ndf6 {[%clk 0:02:50.6]} 6. Nxf6+ {[%clk 0:02:25.3]} 6... Nxf6 {[%clk
0:02:50.2]} 7. Be3 {[%clk 0:02:25.8]} 7... Bf5 {[%clk 0:02:48.6]} 8. O-O-O
{[%clk 0:02:24]} 8... e6 {[%clk 0:02:49.1]} 9. f3 {[%clk 0:02:16.4]} 9... Qa5
{[%clk 0:02:40.3]} 10. Kb1 {[%clk 0:02:15.6]} 10... Nd5 {[%clk 0:02:40.1]} 11.
a3 {[%clk 0:01:54.4]} 11... Bxa3 {[%clk 0:02:32.2]} 12. Bd2 {[%clk 0:01:51]}
12... Bb4 {[%clk 0:02:23.8]} 13. g4 {[%clk 0:01:41.2]} 13... Bg6 {[%clk
0:02:21.6]} 14. h4 {[%clk 0:01:26.4]} 14... Bxd2 {[%clk 0:02:20.8]} 15. Qxd2
{[%clk 0:01:27.3]} 15... Nb4 {[%clk 0:02:13.2]} 0-1

[Event "*** Titled Tuesday Blitz"]
[Site "Chess.com"]
[Date "2020.05.05"]
[Round "3"]
[White "Ceejay271"]
[Black "Lagmantr"]
[Result "0-1"]
[WhiteElo "2375"]
[BlackElo "2699"]
[TimeControl "180+1"]
[EndTime "10:25:32 PDT"]
[Termination "Lagmantr won by resignation"]

1. d4 {[%clk 0:03:00.9]} 1... d5 {[%clk 0:02:57.9]} 2. c4 {[%clk 0:03:00.4]}
2... e6 {[%clk 0:02:57.7]} 3. Nf3 {[%clk 0:02:59.9]} 3... c6 {[%clk 0:02:57.1]}
4. g3 {[%clk 0:02:57.7]} 4... dxc4 {[%clk 0:02:56.5]} 5. Bg2 {[%clk 0:02:58]}
5... b5 {[%clk 0:02:56.5]} 6. O-O {[%clk 0:02:57.4]} 6... Bb7 {[%clk 0:02:56.4]}
7. a4 {[%clk 0:02:52.7]} 7... a6 {[%clk 0:02:56]} 8. Nc3 {[%clk 0:02:45.2]} 8...
Nd7 {[%clk 0:02:53.1]} 9. Bf4 {[%clk 0:02:35.4]} 9... Ngf6 {[%clk 0:02:51.3]}
10. Ne5 {[%clk 0:02:34.4]} 10... Nxe5 {[%clk 0:02:50.3]} 11. Bxe5 {[%clk
0:02:33.6]} 11... Bd6 {[%clk 0:02:35.7]} 12. Bxd6 {[%clk 0:02:30.5]} 12... Qxd6
{[%clk 0:02:35.5]} 13. axb5 {[%clk 0:02:30.2]} 13... axb5 {[%clk 0:02:35]} 14.
Rxa8+ {[%clk 0:02:27.3]} 14... Bxa8 {[%clk 0:02:34.9]} 15. Nxb5 {[%clk
0:02:27.2]} 15... cxb5 {[%clk 0:02:35.8]} 16. Bxa8 {[%clk 0:02:26.6]} 16... O-O
{[%clk 0:02:35.9]} 17. Bf3 {[%clk 0:02:24.9]} 17... h6 {[%clk 0:02:30.4]} 18. e3
{[%clk 0:02:23.6]} 18... e5 {[%clk 0:02:25.6]} 19. dxe5 {[%clk 0:02:22.6]} 19...
Qxe5 {[%clk 0:02:26.5]} 20. Qc2 {[%clk 0:02:21.2]} 20... Rd8 {[%clk 0:02:23.3]}
21. Rd1 {[%clk 0:02:17.9]} 21... Rxd1+ {[%clk 0:02:23.1]} 22. Bxd1 {[%clk
0:02:17.4]} 22... Nd5 {[%clk 0:02:23.6]} 23. Bf3 {[%clk 0:02:04.4]} 23... Nb4
{[%clk 0:02:22.3]} 24. Qd2 {[%clk 0:01:53.4]} 24... Nd3 {[%clk 0:02:20.1]} 25.
b3 {[%clk 0:01:53]} 25... Qa1+ {[%clk 0:02:17.1]} 26. Kg2 {[%clk 0:01:52]} 26...
Ne1+ {[%clk 0:02:17.3]} 27. Kh3 {[%clk 0:01:51.7]} 27... Nxf3 {[%clk 0:02:17.4]}
28. bxc4 {[%clk 0:01:50.5]} 28... Nxd2 {[%clk 0:02:17.3]} 0-1

[Event "*** Titled Tuesday Blitz"]
[Site "Chess.com"]
[Date "2020.05.05"]
[Round "3"]
[White "ENEASZ"]
[Black "Irina_Barchuk"]
[Result "1-0"]
[WhiteElo "2483"]
[BlackElo "2194"]
[TimeControl "180+1"]
[EndTime "10:25:44 PDT"]
[Termination "ENEASZ won by resignation"]

1. e4 {[%clk 0:03:00.9]} 1... c5 {[%clk 0:02:55.9]} 2. c3 {[%clk 0:03:00.9]}
2... Nf6 {[%clk 0:02:54.9]} 3. e5 {[%clk 0:03:01]} 3... Nd5 {[%clk 0:02:54.2]}
4. d4 {[%clk 0:03:01.9]} 4... cxd4 {[%clk 0:02:53.5]} 5. cxd4 {[%clk 0:03:02.8]}
5... Nc6 {[%clk 0:02:43.9]} 6. Nf3 {[%clk 0:03:00]} 6... d6 {[%clk 0:02:42.4]}
7. Nc3 {[%clk 0:02:49.4]} 7... Nxc3 {[%clk 0:02:41.7]} 8. bxc3 {[%clk
0:02:49.3]} 8... d5 {[%clk 0:02:36.3]} 9. Bd3 {[%clk 0:02:46.4]} 9... Bg4 {[%clk
0:02:22.5]} 10. O-O {[%clk 0:02:40.7]} 10... Rc8 {[%clk 0:02:17.4]} 11. h3
{[%clk 0:02:37.5]} 11... Bh5 {[%clk 0:02:15.3]} 12. e6 {[%clk 0:02:36.4]} 12...
fxe6 {[%clk 0:02:11.4]} 13. Re1 {[%clk 0:02:30.7]} 13... Qd7 {[%clk 0:02:10.1]}
14. Rb1 {[%clk 0:02:27.1]} 14... b6 {[%clk 0:01:58.2]} 15. g4 {[%clk 0:02:24.6]}
15... Bg6 {[%clk 0:01:52.8]} 16. Bxg6+ {[%clk 0:02:22.3]} 16... hxg6 {[%clk
0:01:53.7]} 17. Ng5 {[%clk 0:02:20.5]} 17... e5 {[%clk 0:01:49.8]} 18. Qf3
{[%clk 0:02:17.4]} 18... e6 {[%clk 0:01:45.5]} 19. dxe5 {[%clk 0:02:09.6]} 19...
Bc5 {[%clk 0:01:41.7]} 20. Qd3 {[%clk 0:02:05.1]} 20... Rf8 {[%clk 0:01:36.4]}
21. Qxg6+ {[%clk 0:02:03.5]} 21... Kd8 {[%clk 0:01:36.3]} 22. Nxe6+ {[%clk
0:02:00.1]} 22... Ke7 {[%clk 0:01:35.4]} 23. Bg5+ {[%clk 0:01:58.6]} 1-0

[Event "*** Titled Tuesday Blitz"]
[Site "Chess.com"]
[Date "2020.05.05"]
[Round "3"]
[White "GracefulYear"]
[Black "josiwales"]
[Result "0-1"]
[WhiteElo "2426"]
[BlackElo "2696"]
[TimeControl "180+1"]
[EndTime "10:25:49 PDT"]
[Termination "josiwales won by checkmate"]

1. b3 {[%clk 0:03:00.9]} 1... e5 {[%clk 0:02:59.2]} 2. Bb2 {[%clk 0:03:01.1]}
2... d6 {[%clk 0:03:00]} 3. g3 {[%clk 0:03:01.4]} 3... g6 {[%clk 0:03:00.6]} 4.
Bg2 {[%clk 0:03:01.2]} 4... Bg7 {[%clk 0:03:01.3]} 5. f4 {[%clk 0:03:00.6]} 5...
Ne7 {[%clk 0:03:01.1]} 6. e3 {[%clk 0:03:00.1]} 6... O-O {[%clk 0:03:01.5]} 7.
Ne2 {[%clk 0:03:00]} 7... Nbc6 {[%clk 0:03:01.5]} 8. O-O {[%clk 0:02:59.7]} 8...
Be6 {[%clk 0:02:57.8]} 9. d3 {[%clk 0:02:59.3]} 9... f5 {[%clk 0:02:56.5]} 10.
Nd2 {[%clk 0:02:59.3]} 10... Re8 {[%clk 0:02:51.5]} 11. e4 {[%clk 0:02:58.9]}
11... Qd7 {[%clk 0:02:51.6]} 12. Re1 {[%clk 0:02:56.6]} 12... Rad8 {[%clk
0:02:52.1]} 13. Nc3 {[%clk 0:02:51.7]} 13... d5 {[%clk 0:02:49.2]} 14. exd5
{[%clk 0:02:50.8]} 14... Nxd5 {[%clk 0:02:50.1]} 15. Nxd5 {[%clk 0:02:50.8]}
15... Bxd5 {[%clk 0:02:50.6]} 16. Qe2 {[%clk 0:02:49.1]} 16... exf4 {[%clk
0:02:43.8]} 17. Qxe8+ {[%clk 0:02:42.2]} 17... Rxe8 {[%clk 0:02:41.6]} 18. Rxe8+
{[%clk 0:02:41.4]} 18... Qxe8 {[%clk 0:02:14]} 19. Bxd5+ {[%clk 0:02:40.4]}
19... Kh8 {[%clk 0:02:14.6]} 20. Bxg7+ {[%clk 0:02:40.2]} 20... Kxg7 {[%clk
0:02:15.5]} 21. Kf2 {[%clk 0:02:37]} 21... Qe3+ {[%clk 0:02:15.1]} 22. Kf1
{[%clk 0:02:34.6]} 22... Qxd2 {[%clk 0:02:14.6]} 23. gxf4 {[%clk 0:02:34.9]}
23... Qxf4+ {[%clk 0:02:14]} 24. Kg2 {[%clk 0:02:33]} 24... Nd4 {[%clk
0:02:11.9]} 25. Rf1 {[%clk 0:02:30.7]} 25... Qg5+ {[%clk 0:02:09.2]} 26. Kh1
{[%clk 0:02:29.9]} 26... f4 {[%clk 0:02:08.5]} 27. Be4 {[%clk 0:02:29]} 27... c6
{[%clk 0:02:06.4]} 28. c3 {[%clk 0:02:27.9]} 28... Nf5 {[%clk 0:02:05.1]} 29.
Rg1 {[%clk 0:02:27.1]} 29... Qh5 {[%clk 0:02:01.3]} 30. Kg2 {[%clk 0:02:19]}
30... Qe2+ {[%clk 0:02:00.2]} 31. Kh1 {[%clk 0:02:18.3]} 31... f3 {[%clk
0:01:59.1]} 32. Ra1 {[%clk 0:02:16.4]} 32... f2 {[%clk 0:01:58]} 33. Bg2 {[%clk
0:02:07.2]} 33... Ne3 {[%clk 0:01:56.1]} 34. d4 {[%clk 0:02:05.6]} 34... Nxg2
{[%clk 0:01:54.1]} 35. Kxg2 {[%clk 0:02:05.3]} 35... f1=Q+ {[%clk 0:01:53.9]}
36. Kg3 {[%clk 0:02:06.2]} 36... Qff3+ {[%clk 0:01:53.5]} 37. Kh4 {[%clk
0:02:06.2]} 37... Qg4# {[%clk 0:01:53.8]} 0-1

[Event "*** Titled Tuesday Blitz"]
[Site "Chess.com"]
[Date "2020.05.05"]
[Round "3"]
[White "Mikozovna"]
[Black "Sanyura"]
[Result "0-1"]
[WhiteElo "2259"]
[BlackElo "2494"]
[TimeControl "180+1"]
[EndTime "10:25:54 PDT"]
[Termination "Sanyura won by resignation"]

1. e4 {[%clk 0:03:00.9]} 1... c5 {[%clk 0:02:59.9]} 2. Nf3 {[%clk 0:03:00.3]}
2... e6 {[%clk 0:03:00.3]} 3. d4 {[%clk 0:03:00.3]} 3... cxd4 {[%clk 0:03:01.2]}
4. Nxd4 {[%clk 0:03:00.8]} 4... Nf6 {[%clk 0:03:01.8]} 5. Nc3 {[%clk 0:02:53.4]}
5... Nc6 {[%clk 0:03:01.6]} 6. Be3 {[%clk 0:02:52.7]} 6... Bb4 {[%clk
0:03:00.5]} 7. f3 {[%clk 0:02:45.6]} 7... d5 {[%clk 0:02:56.4]} 8. Nxc6 {[%clk
0:02:40.6]} 8... bxc6 {[%clk 0:02:54.9]} 9. Bd3 {[%clk 0:02:35.8]} 9... d4
{[%clk 0:02:50.9]} 10. Bd2 {[%clk 0:02:30.6]} 10... dxc3 {[%clk 0:02:50]} 11.
bxc3 {[%clk 0:02:30.5]} 11... Bc5 {[%clk 0:02:50]} 12. Qe2 {[%clk 0:02:27.7]}
12... e5 {[%clk 0:02:48.2]} 13. Rd1 {[%clk 0:02:22.7]} 13... O-O {[%clk
0:02:47]} 14. Bg5 {[%clk 0:02:22.3]} 14... Be7 {[%clk 0:02:45.7]} 15. O-O {[%clk
0:02:18.8]} 15... Qb6+ {[%clk 0:02:45.4]} 16. Kh1 {[%clk 0:02:18.1]} 16... Qc5
{[%clk 0:02:43.6]} 17. Bc4 {[%clk 0:02:12.3]} 17... h6 {[%clk 0:02:41.3]} 18.
Be3 {[%clk 0:02:11.1]} 18... Qa5 {[%clk 0:02:40.6]} 19. h3 {[%clk 0:02:09.3]}
19... Nh5 {[%clk 0:02:39.6]} 20. Kh2 {[%clk 0:02:08.1]} 20... Bc5 {[%clk
0:02:39]} 21. Bd2 {[%clk 0:02:00.7]} 21... Nf4 {[%clk 0:02:35.6]} 22. Bxf4
{[%clk 0:01:59.9]} 22... exf4 {[%clk 0:02:36.5]} 23. Qd2 {[%clk 0:01:58.7]}
23... Be3 {[%clk 0:02:35.7]} 24. Qd6 {[%clk 0:01:58.2]} 24... Qg5 {[%clk
0:02:33.1]} 25. g4 {[%clk 0:01:42.2]} 25... fxg3+ {[%clk 0:02:25.6]} 26. Kg2
{[%clk 0:01:42.2]} 26... Bf4 {[%clk 0:02:22.6]} 27. Qxc6 {[%clk 0:01:25]} 27...
Bxh3+ {[%clk 0:02:22.1]} 0-1

[Event "*** Titled Tuesday Blitz"]
[Site "Chess.com"]
[Date "2020.05.05"]
[Round "3"]
[White "TheFireChess"]
[Black "chenxiaoyuer"]
[Result "1-0"]
[WhiteElo "2453"]
[BlackElo "2220"]
[TimeControl "180+1"]
[EndTime "10:26:05 PDT"]
[Termination "TheFireChess won by checkmate"]

1. e4 {[%clk 0:03:00.9]} 1... c5 {[%clk 0:02:59.2]} 2. c3 {[%clk 0:03:01]} 2...
d5 {[%clk 0:02:58.7]} 3. exd5 {[%clk 0:03:01.4]} 3... Qxd5 {[%clk 0:02:59.2]} 4.
d4 {[%clk 0:03:02.3]} 4... g6 {[%clk 0:02:56.1]} 5. Nf3 {[%clk 0:03:00]} 5...
Bg7 {[%clk 0:02:56.1]} 6. Na3 {[%clk 0:03:00.5]} 6... Nf6 {[%clk 0:02:52.7]} 7.
Be3 {[%clk 0:02:59.3]} 7... cxd4 {[%clk 0:02:51.8]} 8. Nb5 {[%clk 0:02:59.8]}
8... Na6 {[%clk 0:02:48.6]} 9. Qxd4 {[%clk 0:02:59.6]} 9... b6 {[%clk
0:02:31.5]} 10. Rd1 {[%clk 0:01:54.9]} 10... Bb7 {[%clk 0:02:26.5]} 11. Qa4
{[%clk 0:01:50]} 11... Qc6 {[%clk 0:02:13.3]} 12. Ne5 {[%clk 0:01:44.2]} 12...
Nc5 {[%clk 0:01:52.3]} 13. Qc4 {[%clk 0:01:12]} 13... Qc8 {[%clk 0:01:36.6]} 14.
Qxf7# {[%clk 0:01:09.9]} 1-0